bitfinex-derivatives/quotes_SOLF0:USTF0_20240905
["timestamp","ask_amount","ask_price","bid_price","bid_amount"]
[1725547141152,32.5063,133.47,133.46,0.04922767]
[1725547142076,0.04938959,133.48,133.46,0.04922767]
[1725547142260,41.51509615,133.65,133.46,0.04922767]
[1725547142261,7.12233915,133.6,133.46,0.04922767]
[1725547142568,7.12233915,133.6,133.47,28.76]
[1725547142569,32.44217273,133.58,133.47,28.76]
[1725547142766,28.76,133.58,133.47,28.76]
[1725547142959,28.76,133.58,133.53,3.7444]
[1725547143160,3.7439,133.56,133.53,3.7444]
[1725547143370,3.79879706,133.56,133.53,3.80117393]
[1725547143863,3.7442,133.55,133.53,0.05677393]
[1725547144068,0.05489706,133.56,133.53,0.05677393]
[1725547145266,3.79879706,133.56,133.53,3.80117393]
[1725547146262,0.05489706,133.56,133.53,3.80117393]
[1725547146761,0.05489706,133.56,133.53,0.05677393]
[1725547147163,3.79879706,133.56,133.53,0.05677393]
[1725547147959,3.79879706,133.56,133.53,3.80127393]
[1725547148161,3.79879706,133.56,133.53,0.05677393]
[1725547148571,3.79879706,133.56,133.53,3.80127393]
[1725547149764,0.05489706,133.56,133.53,0.05677393]
[1725547149970,0.05489706,133.56,133.54,3.7442]
[1725547150370,3.79889706,133.56,133.53,3.80127393]
[1725547151267,28.81489706,133.56,133.53,0.05677393]
[1725547151863,3.7443,133.54,133.53,0.05677393]
[1725547152062,26.7443,133.54,133.53,0.05677393]
[1725547152470,23.05489706,133.56,133.53,0.05677393]
[1725547152869,0.05489706,133.56,133.55,3.7441]
[1725547154067,0.05489706,133.56,133.53,0.05677393]
[1725547154670,3.7442,133.55,133.53,0.05677393]
[1725547154877,0.05489706,133.56,133.53,0.05677393]
[1725547155079,0.05489706,133.56,133.54,3.7442]
[1725547155279,0.05489706,133.56,133.53,0.05677393]
[1725547155670,0.05489706,133.56,133.54,3.7442]
[1725547155974,0.05489706,133.56,133.53,0.05677393]
[1725547156278,0.05489706,133.56,133.55,3.7441]
[1725547156578,0.05489706,133.56,133.53,0.05677393]
[1725547156775,0.05489706,133.56,133.54,3.7442]
[1725547158270,28.78,133.55,133.53,0.05677393]
[1725547158579,32.57288861,133.55,133.43,3.7295864]
[1725547158771,28.78,133.53,133.5,3.7453]
[1725547159072,28.78,133.53,133.44,31.6105]
[1725547159277,28.78,133.53,133.44,2.8305]
[1725547159477,0.0550041,133.5,133.47,0.04872134]
[1725547160084,0.0550041,133.5,133.48,3.7459]
[1725547160276,0.0550041,133.5,133.47,0.04872134]
[1725547161173,0.0550041,133.5,133.47,3.79482134]
[1725547161776,0.0550041,133.5,133.47,0.04872134]
[1725547162877,3.7459,133.49,133.47,0.04872134]
[1725547163575,0.0550041,133.5,133.47,0.04872134]
[1725547164178,3.79288861,133.55,133.47,0.04872134]
[1725547164179,32.57288861,133.55,133.47,0.04872134]
[1725547164377,28.78,133.58,133.54,3.7443]
[1725547164580,28.78,133.58,133.48,28.78]
[1725547164779,3.7439,133.56,133.48,28.78]
[1725547165083,7.55592859,133.56,133.53,3.7444]
[1725547165270,3.7954141,133.56,133.53,3.79192045]
[1725547165471,0.0515141,133.56,133.53,3.79212045]
[1725547165677,3.71758053,133.55,133.53,3.79212045]
[1725547165879,28.78,133.54,133.45,5.2994]
[1725547166179,28.78,133.51,133.44,2.8305]
[1725547166382,28.78,133.51,133.46,3.7464]
[1725547166383,3.7455,133.5,133.46,3.7464]
[1725547166980,3.79781682,133.49,133.47,0.04769905]
[1725547167183,3.65270806,133.48,133.47,0.04769905]
[1725547167485,3.746,133.48,133.47,0.04769905]
[1725547167782,7.44440437,133.48,133.47,0.04769905]
[1725547168681,28.78,133.49,133.41,5.396]
[1725547168879,28.78,133.44,133.37,113.32192358]
[1725547169184,3.7477,133.43,133.39,3.7485]
[1725547169575,3.7477,133.43,133.37,117.15824359]
[1725547169778,0.05631935,133.42,133.4,0.05163131]
[1725547169982,0.05631935,133.42,133.4,3.79973131]
[1725547170377,0.05631935,133.42,133.4,0.05163131]
[1725547170883,3.80153941,133.42,133.4,3.72674565]
[1725547171078,0.05631935,133.42,133.4,0.05163131]
[1725547171287,3.78795831,133.41,133.4,0.05163131]
[1725547171684,28.78,133.41,133.4,0.05163131]
[1725547171986,28.78,133.41,133.33,12.1821513]
[1725547172186,28.78,133.38,133.33,8.3687]
[1725547172379,28.78,133.4,133.34,1.37735103]
[1725547172587,28.78,133.4,133.33,12.06824471]
[1725547172783,0.0502334,133.38,133.35,0.05382928]
[1725547173591,0.0502334,133.38,133.36,3.7494]
[1725547173789,0.0502334,133.38,133.35,0.05382928]
[1725547174184,28.78,133.42,133.35,0.05382928]
[1725547174486,28.78,133.42,133.34,1.37734699]
[1725547174686,32.56132333,133.42,133.34,1.37734699]
[1725547174880,3.78132333,133.42,133.34,1.37734699]
[1725547175087,28.78,133.44,133.35,28.78]
[1725547175385,0.05248078,133.41,133.38,0.05345464]
[1725547176089,3.7464,133.47,133.38,0.05345464]
[1725547176390,28.78,133.47,133.37,28.78]
[1725547176593,3.7469,133.45,133.42,3.7475]
[1725547176791,3.83407063,133.44,133.42,3.7475]
[1725547177086,0.05003379,133.44,133.42,0.04788102]
[1725547177386,0.05003379,133.44,133.42,3.79548102]
[1725547177690,28.78,133.43,133.42,0.04788102]
[1725547177885,28.78,133.43,133.34,4.12457006]
[1725547178092,28.78,133.41,133.34,2.7473]
[1725547178383,28.78,133.39,133.34,2.7473]
[1725547178589,28.78,133.39,133.33,9.24424471]
[1725547178785,0.05676877,133.37,133.35,0.05659878]
[1725547179284,28.78,133.41,133.35,0.05659878]
[1725547179482,28.78,133.41,133.34,1.37731561]
[1725547179890,32.528,133.41,133.38,3.7486]
[1725547180286,32.58131605,133.41,133.38,3.7990154]
[1725547180787,28.83331605,133.41,133.39,3.7485]
[1725547180992,28.83331605,133.41,133.38,0.0504154]
[1725547181389,0.05331605,133.41,133.38,0.0504154]
[1725547181790,0.05331605,133.41,133.4,3.7483]
[1725547182292,3.84081877,133.46,133.4,3.66649171]
[1725547182491,3.7462,133.48,133.39,5.4508]
[1725547182687,28.78,133.49,133.39,5.4508]
[1725547182894,28.78,133.49,133.4,3.81944965]
[1725547183095,0.0495478,133.46,133.43,0.05299206]
[1725547183389,3.77189915,133.46,133.44,3.7469]
[1725547183895,0.0495478,133.46,133.45,3.7469]
[1725547186196,32.5255,133.5,133.47,3.7461]
[1725547187284,32.57843454,133.5,133.47,3.79507451]
[1725547188298,32.57843454,133.5,133.47,0.04897451]
[1725547188792,28.78,133.48,133.47,0.04897451]
[1725547189798,0.05293454,133.5,133.47,0.04897451]
[1725547190193,0.05293454,133.5,133.47,3.79517451]
[1725547190391,0.05293454,133.5,133.47,0.04897451]
[1725547190797,0.05293454,133.5,133.48,3.7458]
[1725547190993,0.05293454,133.5,133.47,0.04897451]
[1725547191188,0.05293454,133.5,133.49,3.7457]
[1725547191499,0.05293454,133.5,133.47,0.04897451]
[1725547191500,28.78,133.56,133.48,6.34814382]
[1725547191696,32.5239,133.56,133.53,3.7445]
[1725547192090,3.74915711,133.55,133.48,6.29044781]
[1725547192400,0.04982053,133.53,133.52,3.7446]
[1725547194207,3.79261257,133.57,133.55,3.7439]
[1725547194498,28.78,133.58,133.49,28.78]
[1725547194699,32.49057166,133.58,133.49,28.78]
[1725547195198,0.05562447,133.55,133.52,0.0557327]
[1725547195804,0.05562447,133.55,133.54,3.7443]
[1725547196995,0.05562447,133.55,133.52,0.0557327]
[1725547197401,28.78,133.54,133.52,0.0557327]
[1725547198300,3.7446,133.53,133.52,0.0557327]
[1725547199702,3.7446,133.53,133.46,5.6355]
[1725547200000,28.78,133.52,133.46,5.6355]
[1725547200205,28.78,133.52,133.47,3.7462]
[1725547200401,28.78,133.52,133.46,5.6355]
[1725547200601,28.78,133.49,133.41,2.6506]
[1725547200806,28.83595684,133.48,133.46,0.05514534]
[1725547201008,3.7463,133.47,133.46,0.05514534]
[1725547201196,0.05595684,133.48,133.46,0.05514534]
[1725547201508,3.8268542,133.48,133.46,0.05514534]
[1725547201811,32.6068542,133.48,133.46,0.05514534]
[1725547202006,28.78,133.46,133.39,2.6021]
[1725547202209,32.5266,133.46,133.45,5.2754]
[1725547202397,36.20678592,133.46,133.45,5.2754]
[1725547203805,28.78,133.46,133.37,3.7491]
[1725547204003,28.78,133.42,133.36,2.7353]
[1725547204304,3.7476,133.43,133.38,3.7486]
[1725547204504,28.78,133.44,133.36,2.7353]
[1725547205005,0.05734377,133.41,133.39,0.05193826]
[1725547205309,0.05734377,133.41,133.39,0.05432485]
[1725547205310,0.05610444,133.41,133.39,0.05432485]
[1725547205510,0.05610444,133.41,133.4,3.7483]
[1725547205705,28.78,133.48,133.39,0.05432485]
[1725547205901,3.77015373,133.48,133.44,3.7469]
[1725547206302,28.78,133.49,133.44,3.7469]
[1725547206606,28.78,133.47,133.45,0.051682]
[1725547206809,28.78,133.46,133.45,0.05329643]
[1725547207004,28.78,133.46,133.36,2.7353]
[1725547207206,28.78,133.41,133.38,3.7488]
[1725547207398,28.78,133.41,133.36,2.7353]
[1725547207607,28.78,133.47,133.29,28.78]
[1725547207803,28.78,133.37,133.3,5.2913]
[1725547208010,0.04924607,133.35,133.32,0.05474]
[1725547210120,3.7625889,133.35,133.32,0.05474]
[1725547210429,28.82924607,133.35,133.32,0.05474]
[1725547210725,3.74934373,133.34,133.32,0.05474]
[1725547211129,28.82924607,133.35,133.32,0.05474]
[1725547211332,3.86030632,133.35,133.32,0.05474]
[1725547211520,36.39000632,133.35,133.32,0.05474]
[1725547211831,3.86030632,133.35,133.32,0.05474]
[1725547212627,3.75,133.34,133.32,0.05474]
[1725547213124,32.64030632,133.35,133.32,0.05474]
[1725547213125,28.78,133.33,133.32,0.05474]
[1725547213324,32.5302,133.33,133.32,0.05474]
[1725547213622,0.04924607,133.35,133.32,0.05474]
[1725547213824,3.79990263,133.35,133.33,3.75]
[1725547214021,0.04924607,133.35,133.32,0.05474]
[1725547215628,0.04924607,133.35,133.34,3.7499]
[1725547216015,0.04924607,133.35,133.33,2.7533]
[1725547216220,0.04924607,133.35,133.32,0.05474]
[1725547217222,0.04924607,133.35,133.34,3.7499]
[1725547217621,7.57209416,133.4,133.32,28.78]
[1725547217823,3.82379416,133.4,133.36,3.7492]
[1725547218018,28.78,133.4,133.33,2.6188]
[1725547218221,3.749,133.38,133.33,2.6188]
[1725547218426,3.749,133.38,133.34,3.7498]
[1725547218627,0.04753192,133.37,133.35,0.05195017]
[1725547218823,0.04753192,133.37,133.36,3.7494]
[1725547220919,0.04753192,133.37,133.35,3.80145017]
[1725547221221,0.04753192,133.37,133.35,0.05195017]
[1725547221524,0.04753192,133.37,133.36,3.7494]
[1725547222532,0.04753192,133.37,133.35,3.80155017]
[1725547223031,0.04753192,133.37,133.35,0.05195017]
[1725547224224,0.04753192,133.37,133.36,3.7494]
[1725547224723,3.83880556,133.41,133.35,0.05195017]
[1725547224917,28.78,133.4,133.35,0.05195017]
[1725547225119,28.78,133.4,133.3,2.7938]
[1725547225120,28.78,133.38,133.3,2.7938]
[1725547225530,0.0511574,133.35,133.33,0.05721748]
[1725547227826,3.7499,133.34,133.33,0.05721748]
[1725547228322,0.0511574,133.35,133.33,0.05721748]
[1725547228533,0.0511574,133.35,133.33,3.80731748]
[1725547228826,0.0511574,133.35,133.33,0.05721748]
[1725547229033,0.0511574,133.35,133.33,3.80741748]
[1725547229530,0.0511574,133.35,133.33,0.05721748]
[1725547230330,0.0511574,133.35,133.34,3.7499]
[1725547231733,28.78,133.41,133.36,3.7492]
[1725547231921,28.78,133.41,133.32,28.78]
[1725547232125,32.45947178,133.41,133.32,28.78]
[1725547232435,3.67947178,133.41,133.34,28.78]
[1725547232622,28.78,133.43,133.36,0.05350993]
[1725547232623,0.05103721,133.39,133.36,0.05350993]
[1725547232826,0.05103721,133.39,133.38,3.7488]
[1725547234930,0.05103721,133.39,133.36,0.05350993]
[1725547235436,3.79963721,133.39,133.36,3.80270993]
[1725547236337,0.05103721,133.39,133.36,3.80270993]
[1725547236633,28.78,133.38,133.36,0.05350993]
[1725547236827,3.7491,133.37,133.36,0.05350993]
[1725547240235,3.7497,133.35,133.3,5.3962]
[1725547240537,32.5297,133.35,133.3,5.3962]
[1725547240736,3.72552696,133.34,133.3,5.3962]
[1725547240932,3.72552696,133.34,133.32,3.7503]
[1725547241127,28.78,133.39,133.3,34.1762]
[1725547241332,0.0495842,133.36,133.33,0.05595365]
[1725547241831,0.0495842,133.36,133.35,3.7497]
[1725547245435,0.0495842,133.36,133.33,0.05595365]
[1725547245633,3.7990842,133.36,133.33,0.05595365]
[1725547245829,3.7990842,133.36,133.33,3.80605365]
[1725547246035,3.7498,133.35,133.33,0.05595365]
[1725547246236,3.80289615,133.34,133.33,0.05595365]
[1725547246540,0.0495842,133.36,133.33,0.05595365]
[1725547248740,0.0495842,133.36,133.35,3.7497]
[1725547249948,0.0495842,133.36,133.33,0.05595365]
[1725547249949,3.7989842,133.36,133.33,0.05595365]
[1725547250440,3.7990842,133.36,133.33,0.05595365]
[1725547250640,28.78,133.35,133.33,0.05595365]
[1725547251036,32.5298,133.35,133.33,0.05595365]
[1725547251242,3.67011701,133.34,133.33,0.05595365]
[1725547251438,0.0495842,133.36,133.33,0.05595365]
[1725547252439,3.7497,133.35,133.33,0.05595365]
[1725547252643,0.0495842,133.36,133.33,0.05595365]
[1725547253343,0.0495842,133.36,133.34,3.7498]
[1725547253550,0.0495842,133.36,133.33,0.05595365]
[1725547254043,0.0495842,133.36,133.35,3.7497]
[1725547254844,0.0495842,133.36,133.33,0.05595365]
[1725547255451,3.7989842,133.36,133.34,3.7499]
[1725547255651,3.7989842,133.36,133.33,0.05595365]
[1725547255949,3.7989842,133.36,133.33,3.80605365]
[1725547256146,28.8295842,133.36,133.33,0.05595365]
[1725547256651,0.0495842,133.36,133.33,0.05595365]
[1725547256848,3.71953202,133.41,133.33,3.87853429]
[1725547257146,28.78,133.42,133.33,32.63865432]
[1725547257343,3.73996849,133.48,133.39,3.7484]
[1725547257344,28.78,133.44,133.39,3.7484]
[1725547257850,32.55569392,133.44,133.38,3.7486]
[1725547258050,32.55569392,133.44,133.4,0.0485958]
[1725547258051,28.83031337,133.42,133.4,0.0485958]
[1725547258749,3.748,133.41,133.4,0.0485958]
[1725547259252,28.83031337,133.42,133.4,0.0485958]
[1725547259461,0.05031337,133.42,133.4,0.0485958]
[1725547261249,72.68140155,133.88,133.4,0.0485958]
[1725547261250,28.78,133.48,133.4,0.0485958]
[1725547261450,28.78,133.48,133.39,28.78]
[1725547261751,28.78,133.5,133.39,28.78]
[1725547262144,28.78,133.5,133.46,3.7464]
[1725547262145,32.5256,133.5,133.46,3.7464]
[1725547262344,32.5256,133.5,133.42,3.66881655]
[1725547262549,0.03677378,133.49,133.43,5.4523]
[1725547262750,0.03677378,133.49,133.47,3.7463]
[1725547263253,0.03677378,133.49,133.48,3.746]
[1725547263451,67.32159911,133.6,133.45,0.0569676]
[1725547263452,28.78,133.56,133.45,28.78]
[1725547263852,32.5239,133.56,133.52,3.7447]
[1725547264043,32.45223047,133.56,133.52,3.7447]
[1725547264450,36.19613047,133.56,133.52,3.7447]
[1725547264647,36.19613047,133.56,133.53,0.05277003]
[1725547264843,32.45223047,133.56,133.53,0.05277003]
[1725547265052,28.78,133.54,133.53,0.05277003]
[1725547265549,3.7443,133.54,133.53,0.05277003]
[1725547265748,32.45223047,133.56,133.53,0.05277003]
[1725547266352,3.7442,133.55,133.53,0.05277003]
[1725547266549,32.45223047,133.56,133.53,0.05277003]
[1725547266855,36.19613047,133.56,133.53,0.05277003]
[1725547267843,3.7441,133.55,133.53,0.05277003]
[1725547268048,32.45223047,133.56,133.53,0.05277003]
[1725547268252,28.78,133.54,133.53,0.05277003]
[1725547268753,32.5243,133.54,133.53,0.05277003]
[1725547269546,28.78,133.54,133.53,0.05277003]
[1725547270144,32.5243,133.54,133.53,0.05277003]
[1725547270547,28.78,133.54,133.46,2.781]
[1725547270747,28.78,133.54,133.48,3.7458]
[1725547271142,28.78,133.54,133.46,2.781]
[1725547271549,0.05138496,133.51,133.49,0.05112158]
[1725547272253,0.05138496,133.51,133.5,3.7455]
[1725547272455,32.45223047,133.56,133.49,0.05112158]
[1725547272653,3.67223047,133.56,133.49,5.60912158]
[1725547272849,28.78,133.58,133.49,5.60912158]
[1725547273046,28.78,133.58,133.49,5.558]
[1725547273447,3.7443,133.55,133.52,0.05750439]
[1725547274252,32.5244,133.54,133.52,0.05750439]
[1725547274755,3.69661321,133.53,133.52,0.05750439]
[1725547274953,32.5244,133.54,133.52,0.05750439]
[1725547275161,36.24648901,133.54,133.52,0.05750439]
[1725547275755,3.7446,133.53,133.52,0.05750439]
[1725547275952,32.50208901,133.54,133.36,7.4986]
[1725547276157,28.78,133.5,133.42,2.7907]
[1725547276461,3.7462,133.48,133.42,2.7907]
[1725547276659,28.78,133.5,133.42,2.7907]
[1725547276959,0.0559811,133.47,133.45,0.05528249]
[1725547277160,3.81721873,133.47,133.45,0.05528249]
[1725547277362,0.0559811,133.47,133.45,0.05528249]
[1725547277655,3.81721873,133.47,133.45,0.05528249]
[1725547277859,0.0559811,133.47,133.45,0.05528249]
[1725547278563,3.7448,133.53,133.5,3.7453]
[1725547279561,3.745,133.52,133.46,2.8372]
[1725547279759,28.78,133.55,133.48,0.05559158]
[1725547280062,32.5919395,133.55,133.48,0.05559158]
[1725547280256,3.7447,133.53,133.48,0.05559158]
[1725547280556,32.5919395,133.55,133.48,0.05559158]
[1725547281156,3.8119395,133.55,133.52,3.7447]
[1725547281453,3.8119395,133.55,133.52,3.80149778]
[1725547282061,28.78,133.59,133.52,0.05679778]
[1725547282556,32.4449604,133.59,133.52,0.05679778]
[1725547282855,28.78,133.57,133.52,0.05679778]
[1725547283063,3.6649604,133.59,133.52,0.05679778]
[1725547283064,28.78,133.55,133.52,0.05679778]
[1725547283354,3.7446,133.53,133.52,0.05679778]
[1725547283554,28.78,133.55,133.52,0.05679778]
[1725547283963,28.78,133.57,133.52,0.05679778]
[1725547284461,3.7436,133.57,133.54,3.7443]
[1725547284860,3.7436,133.57,133.52,0.05679778]
[1725547284861,3.71740796,133.56,133.53,3.7445]
[1725547285362,3.71740796,133.56,133.54,3.7443]
[1725547285655,3.7433,133.58,133.54,3.7443]
[1725547285862,3.7433,133.58,133.55,0.05167889]
[1725547286052,3.7433,133.58,133.55,3.79567889]
[1725547286258,3.82247958,133.59,133.55,0.05167889]
[1725547286457,28.78,133.61,133.55,0.05167889]
[1725547286663,3.7432,133.58,133.55,3.79567889]
[1725547286867,3.70673767,133.57,133.55,3.79567889]
[1725547287162,28.78,133.61,133.55,3.79567889]
[1725547287163,28.78,133.61,133.55,0.05167889]
[1725547287460,3.7429,133.59,133.55,0.05167889]
[1725547287663,3.66178936,133.58,133.55,0.05167889]
[1725547287867,3.7431,133.59,133.55,3.79547889]
[1725547288165,3.72172044,133.58,133.55,3.79547889]
[1725547288367,3.72172044,133.58,133.55,0.05167889]
[1725547288661,28.78,133.61,133.55,0.05167889]
[1725547288869,28.78,133.64,133.55,0.05167889]
[1725547289059,28.78,133.64,133.58,0.051492]
[1725547289367,3.7421,133.62,133.59,3.7428]
[1725547289865,32.50284415,133.64,133.58,3.794492]
[1725547290363,3.7423,133.62,133.58,3.794492]
[1725547290667,32.50284415,133.64,133.58,3.794492]
[1725547291166,28.78,133.62,133.58,0.051492]
[1725547291563,3.7425,133.61,133.58,0.051492]
[1725547291763,3.81795716,133.6,133.58,3.794592]
[1725547292068,28.78,133.61,133.58,0.051492]
[1725547292659,32.4901243,133.61,133.58,0.051492]
[1725547293367,28.78,133.65,133.59,3.7428]
[1725547293567,3.742,133.63,133.61,0.05172092]
[1725547294163,3.7421,133.62,133.61,0.05172092]
[1725547295665,3.7432,133.59,133.53,2.5868]
[1725547296264,3.7432,133.59,133.56,3.7437]
[1725547296460,3.73333832,133.58,133.56,3.7437]
[1725547296771,28.8275016,133.58,133.56,0.05658904]
[1725547296972,3.71232112,133.58,133.56,0.05658904]
[1725547297864,32.49232112,133.58,133.56,0.05658904]
[1725547298466,32.49232112,133.58,133.56,3.80018904]
[1725547299572,36.23552112,133.58,133.56,0.05658904]
[1725547302370,28.78,133.57,133.49,2.6391]
[1725547302871,3.7442,133.55,133.52,3.7447]
[1725547303279,3.7442,133.55,133.51,3.7451]
[1725547303477,28.83022263,133.54,133.52,0.05021739]
[1725547303678,28.78,133.53,133.52,0.05021739]
[1725547304085,32.5246,133.53,133.52,0.05021739]
[1725547306481,28.78,133.53,133.42,28.78]
[1725547306691,28.78,133.5,133.42,28.78]
[1725547306990,28.78,133.54,133.41,7.9035]
[1725547306991,28.78,133.49,133.41,7.9035]
[1725547307193,3.76058448,133.48,133.41,7.9035]
[1725547307380,28.78,133.5,133.41,36.6835]
[1725547307579,0.04991838,133.47,133.44,0.04763234]
[1725547307889,0.04991838,133.47,133.46,3.7466]
[1725547308994,7.53118023,133.51,133.48,3.746]
[1725547309293,3.78588023,133.51,133.48,3.746]
[1725547309692,3.78588023,133.51,133.49,3.7457]
[1725547309993,0.05402484,133.51,133.49,0.05309301]
[1725547310687,0.05402484,133.51,133.5,3.7455]
[1725547311292,28.78,133.59,133.53,3.7445]
[1725547312186,0.0556804,133.57,133.55,0.05222055]
[1725547312385,3.86056575,133.57,133.55,0.05222055]
[1725547313295,3.7438,133.56,133.55,0.05222055]
[1725547317294,3.86056575,133.57,133.55,0.05222055]
[1725547317898,7.60436575,133.57,133.55,0.05222055]
[1725547318291,3.86056575,133.57,133.55,0.05222055]
[1725547318497,3.7438,133.56,133.55,0.05222055]
[1725547320205,3.86056575,133.57,133.55,0.05222055]
[1725547320705,3.7438,133.56,133.55,0.05222055]
[1725547321002,26.7738,133.56,133.55,0.05222055]
[1725547322294,30.63416575,133.57,133.55,0.05222055]
[1725547322901,26.89056575,133.57,133.55,0.05222055]
[1725547323098,30.63416575,133.57,133.55,0.05222055]
[1725547323496,0.0556804,133.57,133.55,0.05222055]
[1725547323900,23.03,133.63,133.55,0.05222055]
[1725547324094,3.7422,133.62,133.55,0.05222055]
[1725547324302,23.03,133.63,133.59,3.7428]
[1725547324806,3.7422,133.62,133.6,0.0550748]
[1725547325000,23.03,133.63,133.6,0.0550748]
[1725547325298,23.03,133.66,133.6,0.0550748]
[1725547325696,26.80481015,133.66,133.62,3.742]
[1725547325897,3.77481015,133.66,133.6,0.0550748]
[1725547326100,28.74,133.66,133.6,0.0550748]
[1725547326306,32.40883086,133.66,133.6,0.0550748]
[1725547326703,36.14993086,133.66,133.6,0.0550748]
[1725547326901,36.14993086,133.66,133.62,3.742]
[1725547327303,3.7413,133.65,133.61,3.7423]
[1725547327704,32.40883086,133.66,133.61,3.7423]
[1725547327906,3.66883086,133.66,133.6,0.0550748]
[1725547328107,28.74,133.69,133.6,28.7950748]
[1725547328408,0.106,133.72,133.66,3.7408]
[1725547328409,3.7401,133.7,133.66,3.7408]
[1725547328604,28.74,133.71,133.67,0.05235452]
[1725547328803,28.74,133.71,133.68,0.04886807]
[1725547329004,28.74,133.71,133.68,0.05680916]
[1725547329199,3.74,133.7,133.68,0.05680916]
[1725547329609,32.39575222,133.71,133.68,0.05680916]
[1725547330108,3.7401,133.69,133.68,0.05680916]
[1725547331809,3.7399,133.7,133.68,0.05680916]
[1725547332712,3.7401,133.69,133.68,0.05680916]
[1725547333406,32.4801,133.69,133.68,0.05680916]
[1725547334017,3.741,133.66,133.62,2.628]
[1725547334411,3.741,133.66,133.62,6.37]
[1725547334909,0.05488948,133.65,133.62,6.37]
[1725547335218,3.7415,133.64,133.63,0.05725145]
[1725547335412,7.51816342,133.64,133.63,0.05725145]
[1725547335815,3.77666342,133.64,133.63,0.05725145]
[1725547336017,0.05488948,133.65,133.63,0.05725145]
[1725547336612,0.05488948,133.65,133.64,3.7415]
[1725547337414,3.65575222,133.71,133.63,5.43945145]
[1725547337622,28.74,133.73,133.63,5.43945145]
[1725547337815,3.74,133.7,133.63,5.3822]
[1725547338016,3.65129855,133.69,133.66,3.7408]
[1725547338417,28.74,133.73,133.66,3.788422]
[1725547338616,0.27514335,133.72,133.66,3.788422]
[1725547338819,0.27514335,133.72,133.66,0.047622]
[1725547339022,3.7402,133.69,133.66,0.047622]
[1725547339217,28.74,133.71,133.66,0.047622]
[1725547339622,3.7406,133.68,133.66,0.047622]
[1725547340319,28.74,133.69,133.66,0.047622]
[1725547341025,32.49654842,133.69,133.66,0.047622]
[1725547341322,3.7407,133.67,133.66,0.047622]
[1725547343520,3.7405,133.68,133.66,0.047622]
[1725547343724,3.75654842,133.69,133.66,0.047622]
[1725547344026,28.74,133.73,133.66,0.047622]
[1725547344326,0.27513209,133.72,133.66,0.047622]
[1725547344730,3.7397,133.71,133.67,3.7405]
[1725547345021,3.67364577,133.73,133.67,28.74]
[1725547345218,3.7387,133.75,133.7,3.7397]
[1725547345422,3.7387,133.75,133.71,0.05114933]
[1725547346020,3.7389,133.74,133.71,0.05114933]
[1725547346226,28.74,133.77,133.71,0.05114933]
[1725547346432,0.27505785,133.76,133.71,0.05114933]
[1725547346823,3.7389,133.74,133.71,0.05114933]
[1725547347127,3.71352409,133.73,133.71,0.05114933]
[1725547347927,3.7386,133.75,133.71,0.05114933]
[1725547348124,3.7383,133.76,133.71,0.05114933]
[1725547348426,28.74,133.77,133.71,0.05114933]
[1725547348427,3.66658395,133.8,133.71,28.79114933]
[1725547348627,28.74,133.81,133.71,28.79114933]
[1725547348628,29.01499387,133.79,133.74,0.04847283]
[1725547348839,0.27499387,133.78,133.74,0.04847283]
[1725547349130,32.53882365,133.79,133.74,0.04847283]
[1725547349131,3.7384,133.76,133.74,0.04847283]
[1725547349529,32.53882365,133.79,133.74,0.04847283]
[1725547349832,0.27501207,133.78,133.74,0.04847283]
[1725547350134,28.74,133.77,133.74,0.04847283]
[1725547350328,3.7385,133.75,133.74,0.04847283]
[1725547351228,3.7384,133.76,133.74,0.04847283]
[1725547351432,3.79882365,133.79,133.74,0.04847283]
[1725547351628,28.74,133.81,133.74,0.04847283]
[1725547351833,0.27496161,133.8,133.74,0.04847283]
[1725547352127,3.80919231,133.8,133.74,0.04847283]
[1725547352330,28.74,133.81,133.74,0.04847283]
[1725547352835,3.738,133.77,133.74,0.04847283]
[1725547353332,28.74,133.79,133.74,0.04847283]
[1725547354629,3.7381,133.77,133.74,0.04847283]
[1725547356132,28.74,133.79,133.74,0.04847283]
[1725547357730,3.7385,133.75,133.74,0.04847283]
[1725547358028,3.80769616,133.81,133.74,0.04847283]
[1725547358029,23.0,133.77,133.74,0.04847283]